fUSD/lending_fUSD_20260308
["ID","MTS","AMOUNT","RATE_DAILY","PERIOD"]
[407996833,1772994640906,-278.687867,0.00019886,2]
[407996835,1772994640915,-278.687867,0.00019886,2]
[407996837,1772994640925,-278.687867,0.00019886,2]
[407996839,1772994640935,-278.687867,0.00019886,2]
[407996841,1772994640943,-278.687867,0.00019886,2]
[407996843,1772994640954,-278.687867,0.00019886,2]
[407996845,1772994640964,-151.0,0.00019886,2]
[407996847,1772994640974,-151.0,0.00019886,2]
[407996849,1772994640983,-151.0,0.00019886,2]
[407996851,1772994640993,-151.0,0.00019886,2]
[407996853,1772994641003,-151.0,0.00019886,2]
[407996855,1772994641013,-151.0,0.00019886,2]
[407996857,1772994641022,-151.0,0.00019886,2]
[407996859,1772994641032,-151.0,0.00019886,2]
[407996861,1772994641041,-151.0,0.00019886,2]
[407996863,1772994641050,-291.202457,0.00019886,2]
[407996865,1772994641059,-2919.33,0.00019886,2]
[407996867,1772994641069,-2919.33,0.00019886,2]
[407996869,1772994641079,-3654.95,0.00019886,2]
[407996871,1772994641088,-204.49,0.00019888,2]
[407996873,1772994641097,-151.0,0.00019897,2]
[407996875,1772994641106,-500.0,0.00019899,2]
[407996877,1772994641116,-175.79749323,0.00019899,2]
[407996879,1772994641125,-47654.14697347,0.000199,2]
[407996881,1772994641135,-5800.0,0.000199,2]
[407996883,1772994641144,-257.53020437,0.000199,2]
[407996885,1772994641153,-1515.0,0.000199,2]
[407996887,1772994641162,-1515.0,0.000199,2]
[407996889,1772994641171,-381.12372176,0.000199,2]
[407996890,1772994641180,-2000.0,0.000199,2]
[407996892,1772994641190,-500.0,0.000199,2]
[407996894,1772994641199,-167.70419482,0.000199,2]
[407996896,1772994641209,-2000.0,0.000199,2]
[407996898,1772994641219,-1927.56441577,0.000199,2]
[407996900,1772994641228,-2000.0,0.000199,2]
[407996902,1772994641237,-2000.0,0.000199,2]
[407996904,1772994641246,-500.0,0.0001993,2]
[407996906,1772994641256,-168.0,0.00019932,2]
[407996908,1772994641265,-2926.0,0.00019947,2]
[407996910,1772994641275,-150.0,0.00019973,2]
[407996912,1772994641284,-570.0,0.00019973,2]
[407996914,1772994641293,-6110.0,0.00019973,2]
[407996916,1772994641303,-500.0,0.00019985,2]
[407996918,1772994641312,-1000.0,0.00019987,2]
[407996920,1772994641321,-591.1411991,0.00019989,2]
[407996922,1772994641330,-2919.0,0.00019989,6]
[407996924,1772994641339,-1279.0,0.0001999,2]
[407996926,1772994641350,-150.0,0.0001999,2]
[407996928,1772994641359,-353.67856,0.0001999,2]
[407996930,1772994641368,-353.67856,0.0001999,2]
[407996932,1772994641377,-353.67856,0.0001999,2]
[407996934,1772994641386,-353.67856,0.0001999,2]
[407996936,1772994641396,-151.0,0.0001999,2]
[407996938,1772994641405,-922.0,0.0001999,2]
[407996940,1772994641414,-180.24159046,0.0001999,2]
[407996942,1772994641424,-1213.0,0.0001999,2]
[407996944,1772994641433,-151.0,0.0001999,2]
[407996946,1772994641443,-151.0,0.0001999,2]
[407996948,1772994641452,-151.0,0.0001999,2]
[407996950,1772994641462,-151.0,0.0001999,2]
[407996952,1772994641472,-151.0,0.0001999,2]
[407996955,1772994641483,-619.0,0.0001999,2]
[407996957,1772994641492,-591.1411991,0.0001999,2]
[407996959,1772994641502,-591.1411991,0.0001999,2]
[407996961,1772994641511,-2460.0,0.0001999,2]
[407996963,1772994641520,-1342.0,0.0001999,2]
[407996965,1772994641529,-472.0,0.00019991,2]
[407996967,1772994641538,-151.0,0.00019996,2]
[407996968,1772994641548,-151.0,0.00019997,2]
[407996970,1772994641557,-151.0,0.00019997,2]
[407996972,1772994641566,-151.0,0.00019997,2]
[407996974,1772994641575,-500.0,0.00019998,2]
[407996976,1772994641584,-500.0,0.00019998,2]
[407996978,1772994641594,-500.0,0.00019998,2]
[407996980,1772994641603,-500.0,0.00019998,2]
[407996982,1772994641612,-500.0,0.00019998,2]
[407996984,1772994641621,-500.0,0.00019998,2]
[407996986,1772994641631,-300.0,0.00019999,2]
[407996988,1772994641640,-300.0,0.00019999,2]
[407996990,1772994641649,-666.0,0.00019999,2]
[407996992,1772994641659,-516.64002131,0.00019999,2]
[407996994,1772994641668,-155.0,0.00019999,2]
[407996996,1772994641677,-500.0,0.00019999,2]
[407996998,1772994641687,-500.0,0.00019999,2]
[407997000,1772994641696,-500.0,0.00019999,2]
[407997002,1772994641706,-500.0,0.00019999,2]
[407997005,1772994641717,-500.0,0.00019999,2]
[407997006,1772994641726,-500.0,0.00019999,2]
[407997008,1772994641735,-500.0,0.00019999,2]
[407997010,1772994641744,-500.0,0.00019999,2]
[407997012,1772994641757,-500.0,0.00019999,2]
[407997014,1772994641766,-500.0,0.00019999,2]
[407997016,1772994641775,-500.0,0.00019999,2]
[407997018,1772994641785,-500.0,0.00019999,2]
[407997020,1772994641795,-500.0,0.00019999,2]
[407997022,1772994641805,-500.0,0.00019999,2]
[407997024,1772994641815,-500.0,0.00019999,2]
[407997026,1772994641824,-500.0,0.00019999,2]
[407997029,1772994641835,-500.0,0.00019999,2]
[407997030,1772994641845,-500.0,0.00019999,2]
[407997032,1772994641853,-500.0,0.00019999,2]
[407997034,1772994641862,-500.0,0.00019999,2]
[407997036,1772994641871,-500.0,0.00019999,2]
[407997038,1772994641880,-500.0,0.00019999,2]
[407997040,1772994641889,-500.0,0.00019999,2]
[407997042,1772994641898,-500.0,0.00019999,2]
[407997044,1772994641907,-338.04,0.00019999,2]
[407997046,1772994641915,-500.0,0.00019999,2]
[407997048,1772994641924,-500.0,0.00019999,2]
[407997077,1772994642177,-500.0,0.00019999,2]
[407997079,1772994642192,-500.0,0.00019999,2]
[407997081,1772994642202,-500.0,0.00019999,2]
[407997083,1772994642211,-500.0,0.00019999,2]
[407997085,1772994642221,-500.0,0.00019999,2]
[407997087,1772994642230,-500.0,0.00019999,2]
[407997089,1772994642240,-500.0,0.00019999,2]
[407997091,1772994642248,-500.0,0.00019999,2]
[407997093,1772994642258,-500.0,0.00019999,2]
[407997095,1772994642267,-500.0,0.00019999,2]
[407997097,1772994642277,-500.0,0.00019999,2]
[407997099,1772994642286,-500.0,0.00019999,2]
[407997101,1772994642295,-500.0,0.00019999,2]
[407997103,1772994642304,-6583.84311317,0.00019999,2]
[407997105,1772994642314,-500.0,0.00019999,2]
[407997107,1772994642323,-500.0,0.00019999,2]
[407997109,1772994642333,-500.0,0.00019999,2]
[407997111,1772994642342,-500.0,0.00019999,2]
[407997113,1772994642351,-500.0,0.00019999,2]
[407997115,1772994642360,-179.06,0.00019999,2]
[407997117,1772994642369,-500.0,0.00019999,2]
[407997119,1772994642379,-500.0,0.00019999,2]
[407997121,1772994642388,-361.12422466,0.00019999,2]
[407997123,1772994642397,-150.0,0.00019999,2]
[407997125,1772994642407,-215.40583698,0.00019999,2]
[407997127,1772994642416,-533.460522,0.00019999,2]
[407997129,1772994642426,-533.460522,0.00019999,2]
[407997131,1772994642435,-533.460522,0.00019999,2]
[407997133,1772994642444,-533.460522,0.00019999,2]
[407997135,1772994642453,-178.151991,0.00019999,2]
[407997137,1772994642463,-178.151991,0.00019999,2]
[407997139,1772994642473,-178.151991,0.00019999,2]
[407997141,1772994642483,-178.151991,0.00019999,2]
[407997143,1772994642492,-3000.0,0.00019999,2]
[407997145,1772994642501,-3000.0,0.00019999,2]
[407997147,1772994642514,-3000.0,0.00019999,2]
[407997149,1772994642523,-3000.0,0.00019999,2]
[407997151,1772994642532,-3000.0,0.00019999,2]
[407997153,1772994642541,-3000.0,0.00019999,2]
[407997155,1772994642551,-3000.0,0.00019999,2]
[407997157,1772994642560,-3000.0,0.00019999,2]
[407997159,1772994642569,-3000.0,0.00019999,2]
[407997161,1772994642578,-3000.0,0.00019999,2]
[407997164,1772994642589,-3000.0,0.00019999,2]
[407997166,1772994642599,-3000.0,0.00019999,2]
[407997168,1772994642608,-3000.0,0.00019999,2]
[407997170,1772994642617,-2012.0,0.00019999,2]
[407997171,1772994642626,-151.0,0.00019999,2]
[407997174,1772994642636,-278.687867,0.00019999,2]
[407997175,1772994642645,-278.687867,0.00019999,2]
[407997177,1772994642655,-278.687867,0.00019999,2]
[407997179,1772994642665,-278.687867,0.00019999,2]
[407997181,1772994642675,-151.0,0.00019999,2]
[407997183,1772994642684,-151.0,0.00019999,2]
[407997185,1772994642693,-151.0,0.00019999,2]
[407997187,1772994642702,-151.0,0.00019999,2]
[407997189,1772994642711,-617.9,0.00019999,2]
[407997191,1772994642720,-617.9,0.00019999,2]
[407997193,1772994642729,-617.9,0.00019999,2]
[407997195,1772994642738,-617.9,0.00019999,2]
[407997197,1772994642751,-617.9,0.00019999,2]
[407997199,1772994642760,-617.9,0.00019999,2]
[407997201,1772994642769,-206.35597305,0.00019999,2]
[407997203,1772994642778,-500.0,0.00019999,2]
[407997205,1772994642789,-417.10161953,0.00019999,2]
[407997207,1772994642798,-169.06691202,0.00019999,2]
[407997209,1772994642808,-500.0,0.00019999,2]
[407997211,1772994642819,-158.12026581,0.00019999,2]
[407997213,1772994642828,-500.0,0.00019999,2]
[407997215,1772994642838,-500.0,0.00019999,2]
[407997217,1772994642847,-500.0,0.00019999,2]
[407997219,1772994642856,-500.0,0.00019999,2]
[407997221,1772994642866,-475.13130211,0.00019999,2]
[407997223,1772994642876,-500.0,0.00019999,2]
[407997225,1772994642885,-500.0,0.00019999,2]
[407997227,1772994642895,-520.99198351,0.00019999,2]
[407997228,1772994642904,-300.0,0.00019999,2]
[407997229,1772994642913,-675.51296807,0.00019999,2]
[407997230,1772994642921,-4420.0,0.0002,2]
[407997231,1772994642932,-3535.0,0.0002,2]
[407997232,1772994642941,-2831.0,0.0002,2]
[407997233,1772994642950,-240799.35977655,0.0002,2]
[407997234,1772994643001,-4900.0,0.00019765,2]
[407997274,1772994643464,-2553.59333194,0.00019765,2]
[407997301,1772994646127,-816.6585,0.00019765,2]
[407997302,1772994646140,-1317.13531947,0.00019765,2]
[407997303,1772994646236,-48773.64466022,0.00019765,2]
[407997320,1772994852884,202.23,9.202e-05,2]
[407997321,1772994853092,202.23,9.686e-05,2]
[407997322,1772994853285,202.23,0.00010171,2]
[407997323,1772994853501,202.23,0.00010655,2]
[407997324,1772994853712,202.23,0.00011139,2]
[407997325,1772994911891,157.0,0.00011503,2]
[407997326,1772994913896,153.0,0.00011503,2]
[407997329,1772994966805,157.0,0.00011503,2]
[407997364,1772995027074,158.0,0.00011503,2]
[407997365,1772995085609,158.0,0.00011503,2]
[407997367,1772995206399,177.0,0.00011503,2]
[407997368,1772995273963,-245.0,0.00011623,2]
[407997369,1772995273983,-76.0,0.00011623,2]
[407997370,1772995510917,168.0,0.00011503,2]
[407997373,1772995810514,160.0,0.00011503,2]
[407997379,1772995832407,-190.18301101,0.00011623,2]
[407997380,1772995832417,-250.0,0.00011623,2]
[407997381,1772995832427,-49.93341827,0.00011623,2]
[407997382,1772995832459,-2086.21568691,0.00011623,2]
[407997383,1772995832471,-2863.85089482,0.00011623,2]
[407997384,1772995832481,-126.23,0.00011623,2]
[407997385,1772995832490,-190.18301101,0.00011667,2]
[407997386,1772995832500,-190.18301101,0.00011667,2]
[407997387,1772995832509,-160.0,0.00011711,3]
[407997388,1772995832519,-202.23,0.00012108,2]
[407997389,1772995832528,-160.0,0.00012282,3]
[407997390,1772995832538,-202.23,0.00012592,2]
[407997391,1772995832547,-1200.0,0.00012783,2]
[407997392,1772995832557,-5000.0,0.00012786,2]
[407997393,1772995832567,-232.46986865,0.00012786,2]
[407997395,1772995832576,-250.0,0.00012786,2]
[407997397,1772995832585,-160.0,0.00012854,3]
[407997398,1772995832595,-484.55896557,0.0001306,2]
[407997399,1772995832605,-202.23,0.00013076,2]
[407997400,1772995832615,-160.0,0.00013426,3]
[407997401,1772995832624,-202.23,0.00013561,2]
[407997402,1772995832634,-200.0,0.000137,2]
[407997403,1772995832643,-200.0,0.000137,2]
[407997404,1772995832654,-208.0,0.000137,5]
[407997405,1772995832663,-160.0,0.00013997,3]
[407997406,1772995832672,-158.5,0.00014,2]
[407997407,1772995832681,-202.23,0.00014045,2]
[407997408,1772995832691,-1680.0,0.00014061,2]
[407997409,1772995832700,-168.0,0.00014307,2]
[407997410,1772995832710,-296.0,0.00014389,2]
[407997411,1772995832719,-202.23,0.00014529,2]
[407997412,1772995832728,-160.0,0.00014569,3]
[407997413,1772995832737,-150.0,0.00014569,2]
[407997414,1772995832747,-1180.89,0.00014853,2]
[407997415,1772995832756,-158.5,0.00014867,2]
[407997416,1772995832766,-434.61,0.00014923,2]
[407997417,1772995832775,-250.0,0.00015,2]
[407997418,1772995832785,-500.0,0.00015,30]
[407997419,1772995832795,-500.0,0.00015,30]
[407997420,1772995832804,-202.23,0.00015014,2]
[407997421,1772995832814,-160.0,0.0001514,3]
[407997422,1772995832823,-166.66,0.00015216,2]
[407997423,1772995832833,-2351.0,0.00015467,2]
[407997424,1772995832843,-202.23,0.00015498,2]
[407997425,1772995832852,-1991.43,0.00015507,2]
[407997426,1772995832863,-166.66,0.00015536,2]
[407997427,1772995832874,-251.3544907,0.00015675,2]
[407997428,1772995832885,-1629.9,0.00015685,2]
[407997429,1772995832896,-160.0,0.00015712,3]
[407997430,1772995832905,-158.5,0.00015733,2]
[407997431,1772995832914,-166.66,0.00015857,2]
[407997432,1772995832923,-202.23,0.00015982,2]
[407997433,1772995833188,-150.00000001,0.00016,2]
[407997434,1772995833210,-166.66,0.00016177,2]
[407997435,1772995833221,-160.0,0.00016284,3]
[407997436,1772995833233,-2000.0,0.00016323,2]
[407997437,1772995833244,-248.45,0.00016324,2]
[407997438,1772995833254,-200.0,0.00016438,2]
[407997439,1772995833264,-1000.0,0.00016438,2]
[407997440,1772995833275,-202.23,0.00016466,2]
[407997441,1772995833286,-166.66,0.00016497,2]
[407997442,1772995833296,-1435.41,0.00016504,2]
[407997443,1772995833306,-158.5,0.000166,2]
[407997444,1772995833316,-1000.0,0.00016712,2]
[407997445,1772995833327,-166.66,0.00016818,2]
[407997446,1772995833336,-160.0,0.00016855,3]
[407997447,1772995833347,-202.23,0.00016951,2]
[407997448,1772995833357,-1000.0,0.00016986,2]
[407997449,1772995833367,-300.0,0.00017,2]
[407997450,1772995833376,-503.0,0.00017,2]
[407997451,1772995833385,-3292.0,0.00017014,2]
[407997452,1772995833394,-2155.56,0.00017111,2]
[407997453,1772995833403,-1000.0,0.0001726,2]
[407997454,1772995833412,-160.0,0.00017427,3]
[407997455,1772995833422,-202.23,0.00017435,2]
[407997456,1772995833431,-158.5,0.00017467,2]
[407997457,1772995833440,-1000.0,0.00017534,2]
[407997458,1772995833449,-2155.56,0.00017539,2]
[407997459,1772995833459,-1000.0,0.00017808,2]
[407997460,1772995833468,-151.0,0.00017918,2]
[407997461,1772995833477,-151.0,0.00017918,2]
[407997462,1772995833486,-202.23,0.00017919,2]
[407997463,1772995833496,-27745.30894328,0.00017921,2]
[407997464,1772995833508,-36845.15926673,0.00017921,2]
[407997467,1772995838283,-2040.61080005,0.00017921,2]
[407997468,1772995838295,-1244.07289605,0.00017921,2]
[407997469,1772995838340,-333.75,0.00017921,2]
[407997470,1772995838351,-22353.76076004,0.00017921,2]
[407997471,1772995838448,-5485.88123385,0.00017921,2]
[407997472,1772995838458,-2155.56,0.00017967,2]
[407997473,1772995838468,-503.1927294,0.00017973,2]
[407997474,1772995838479,-500.0,0.00017973,2]
[407997475,1772995838490,-505.78610807,0.00017973,2]
[407997476,1772995838500,-500.0,0.00017973,2]
[407997477,1772995838509,-160.0,0.00017999,3]
[407997478,1772995838519,-1500.0,0.00018082,7]
[407997479,1772995838529,-1500.0,0.00018082,7]
[407997480,1772995838538,-1000.0,0.00018082,2]
[407997481,1772995838548,-250.0,0.00018219,2]
[407997482,1772995838557,-1415.75,0.00018222,2]
[407997483,1772995838567,-420.67918414,0.00018233,2]
[407997484,1772995838577,-503.0,0.00018235,3]
[407997485,1772995838586,-158.5,0.00018333,2]
[407997486,1772995838596,-1000.0,0.00018356,2]
[407997487,1772995838606,-2000.0,0.00018363,2]
[407997488,1772995838615,-2155.56,0.00018394,2]
[407997489,1772995838625,-202.23,0.00018404,2]
[407997490,1772995838634,-420.67918411,0.00018418,2]
[407997491,1772995838644,-2774.89,0.00018533,2]
[407997492,1772995838653,-29999.99,0.00018533,2]
[407997494,1772995838662,-8182.16173582,0.00018533,2]
[407997495,1772995838695,-0.53099569,0.00018533,2]
[407997499,1772995840847,-350.78463424,0.00018533,2]
[407997500,1772995840858,-885.03799187,0.00018533,2]
[407997501,1772995840870,-581.47464238,0.00018533,2]
[407997502,1772995840879,-160.0,0.0001857,3]
[407997503,1772995840888,-168.0,0.00018599,2]
[407997504,1772995840898,-420.67918411,0.00018603,2]
[407997505,1772995840907,-1000.0,0.0001863,2]
[407997506,1772995840916,-4609.0,0.00018716,2]
[407997507,1772995840926,-465.0,0.00018745,2]
[407997508,1772995840935,-166.66,0.00018769,2]
[407997509,1772995840944,-420.67918411,0.00018789,2]
[407997510,1772995840953,-153.27621721,0.0001881,2]
[407997511,1772995840963,-2155.56,0.00018822,2]
[407997513,1772995840972,-2919.33,0.00018834,2]
[407997515,1772995840981,-2919.33,0.00018834,2]
[407997517,1772995840990,-3654.95,0.00018834,2]
[407997518,1772995840999,-434.61,0.00018882,2]
[407997519,1772995841008,-1000.0,0.00018904,2]
[407997520,1772995841018,-168.0,0.00018909,2]
[407997521,1772995841032,-1831.41,0.00018919,2]
[407997522,1772995841043,-168.0,0.00018927,2]
[407997523,1772995841053,-500.0,0.00018967,2]
[407997524,1772995841062,-820.98406882,0.00018967,2]
[407997525,1772995841072,-174.61919141,0.00018967,2]
[407997526,1772995841081,-262.90206542,0.00018967,2]
[407997527,1772995841090,-578.20924308,0.00018967,2]
[407997528,1772995841099,-209.40437684,0.00018967,2]
[407997529,1772995841111,-1477.93813338,0.00018967,2]
[407997530,1772995841130,-420.67918411,0.00018974,2]
[407997531,1772995841142,-292.60588981,0.0001899,2]
[407997532,1772995841151,-465.0,0.00019037,2]
[407997533,1772995841161,-465.0,0.00019054,2]
[407997534,1772995841170,-465.0,0.00019102,2]
[407997535,1772995841179,-168.0,0.00019118,2]
[407997536,1772995841188,-465.0,0.0001912,2]
[407997537,1772995841202,-160.0,0.00019142,3]
[407997539,1772995841211,-420.67918411,0.00019159,2]
[407997541,1772995841220,-1500.0,0.00019178,7]
[407997543,1772995841229,-1500.0,0.00019178,7]
[407997544,1772995841238,-250.0,0.00019178,2]
[407997546,1772995841248,-1000.0,0.00019178,2]
[407997547,1772995841257,-158.5,0.000192,2]
[407997548,1772995841268,-172.82949155,0.00019202,2]
[407997549,1772995841278,-465.0,0.00019222,2]
[407997550,1772995841287,-250.0,0.00019233,2]
[407997551,1772995841300,-2500.0,0.00019239,2]
[407997552,1772995841322,-205.0,0.00019279,2]
[407997553,1772995841338,-1541.03721467,0.000193,2]
[407997554,1772995841356,-168.0,0.00019321,2]
[407997555,1772995841376,-420.67918411,0.00019344,2]
[407997556,1772995841391,-215.83,0.00019447,2]
[407997557,1772995841411,-1000.0,0.00019452,2]
[407997558,1772995841430,-205.0,0.00019468,2]
[407997559,1772995841449,-503.0,0.00019471,4]
[407997560,1772995841467,-634.35,0.00019499,2]
[407997561,1772995841484,-500.0,0.00019499,2]
[407997562,1772995841503,-500.0,0.00019499,2]
[407997563,1772995841519,-500.0,0.00019499,2]
[407997564,1772995841532,-500.0,0.00019499,2]
[407997565,1772995841551,-500.0,0.00019499,2]
[407997566,1772995841564,-500.0,0.00019499,2]
[407997567,1772995841581,-2000.0,0.000195,2]
[407997568,1772995841594,-2000.0,0.000195,2]
[407997569,1772995841617,-181.08010149,0.00019515,2]
[407997570,1772995841632,-272.62944185,0.00019515,2]
[407997571,1772995841647,-217.15233878,0.00019515,2]
[407997572,1772995841662,-420.67918411,0.0001953,2]
[407997573,1772995841679,-434.61,0.00019541,2]
[407997574,1772995841695,-166.66,0.00019543,2]
[407997575,1772995841710,-205.0,0.0001959,2]
[407997576,1772995841725,-151.0,0.00019596,2]
[407997577,1772995841740,-500.0,0.00019598,2]
[407997578,1772995841756,-500.0,0.00019598,2]
[407997579,1772995841771,-500.0,0.00019598,2]
[407997580,1772995841787,-202.73284524,0.000196,2]
[407997581,1772995841803,-2000.0,0.000196,2]
[407997582,1772995841821,-150.0,0.00019601,2]
[407997583,1772995841836,-150.0,0.00019601,2]
[407997584,1772995841850,-250.0,0.00019656,2]
[407997585,1772995841866,-1000.0,0.00019699,2]
[407997586,1772995841881,-2000.0,0.000197,2]
[407997587,1772995841896,-500.0,0.00019711,2]
[407997588,1772995841911,-231.1610732,0.00019711,2]
[407997589,1772995841926,-500.0,0.00019711,2]
[407997590,1772995841942,-160.0,0.00019713,3]
[407997591,1772995841958,-420.67918411,0.00019715,2]
[407997592,1772995841973,-250.0,0.00019726,2]
[407997593,1772995841988,-1000.0,0.00019726,2]
[407997594,1772995842003,-153.27621721,0.0001975,2]
[407997595,1772995842020,-41992.04265127,0.00019765,2]
[407997596,1772995842035,-500.0,0.00019766,2]
[407997597,1772995842049,-500.0,0.00019766,2]
[407997598,1772995842065,-313.24691377,0.00019773,2]
[407997599,1772995842080,-1025.67166231,0.00019785,2]
[407997600,1772995842094,-688.0,0.00019791,2]
[407997601,1772995842110,-150.0,0.00019791,2]
[407997602,1772995842124,-150.0,0.00019791,2]
[407997603,1772995842147,-256.0,0.00019791,2]
[407997604,1772995842162,-1025.67166227,0.00019798,2]
[407997605,1772995842176,-500.0,0.00019798,2]
[407997606,1772995842192,-500.0,0.00019798,2]
[407997607,1772995842207,-500.0,0.00019798,2]
[407997608,1772995842222,-2557.133,0.00019799,2]
[407997609,1772995842237,-176.85994,0.000198,2]
[407997610,1772995842251,-176.85995,0.000198,2]
[407997611,1772995842266,-2000.0,0.000198,2]
[407997612,1772995842280,-2000.0,0.000198,2]
[407997613,1772995842294,-205.0,0.00019804,2]
[407997614,1772995842309,-1025.67166227,0.00019811,2]
[407997615,1772995842323,-500.0,0.00019821,2]
[407997616,1772995842337,-238.0,0.00019821,2]
[407997617,1772995842352,-1025.67166227,0.00019823,2]
[407997618,1772995842366,-1025.67166227,0.00019836,2]
[407997619,1772995842380,-1025.67166227,0.00019849,2]
[407997620,1772995842395,-1025.67166227,0.00019862,2]
[407997621,1772995842410,-5307.0,0.00019867,2]
[407997622,1772995842425,-150.0,0.00019873,2]
[407997623,1772995842439,-25000.0,0.00019874,3]
[407997624,1772995842454,-1025.67166227,0.00019874,2]
[407997625,1772995842469,-500.0,0.00019875,2]
[407997626,1772995842483,-25000.0,0.00019882,3]
[407997627,1772995842498,-500.0,0.00019885,2]
[407997628,1772995842512,-549.68387848,0.00019885,2]
[407997629,1772995842526,-500.0,0.00019885,2]
[407997630,1772995842541,-500.0,0.00019885,2]
[407997631,1772995842555,-500.0,0.00019885,2]
[407997632,1772995842570,-386.52843539,0.00019885,2]
[407997633,1772995842586,-500.0,0.00019885,2]
[407997634,1772995842601,-500.0,0.00019885,2]
[407997635,1772995842616,-500.0,0.00019885,2]
[407997636,1772995842630,-500.0,0.00019885,2]
[407997637,1772995842645,-500.0,0.00019885,2]
[407997638,1772995842660,-500.0,0.00019885,2]
[407997639,1772995842674,-500.0,0.00019885,2]
[407997640,1772995842688,-204.5,0.00019885,2]
[407997641,1772995842703,-500.0,0.00019885,2]
[407997642,1772995842718,-1025.67166227,0.00019887,2]
[407997643,1772995842733,-151.0,0.00019888,2]
[407997644,1772995842748,-151.0,0.00019891,2]
[407997645,1772995842762,-151.0,0.00019891,2]
[407997646,1772995842777,-151.0,0.00019891,2]
[407997647,1772995842790,-151.0,0.00019891,2]
[407997648,1772995842804,-151.0,0.00019891,2]
[407997649,1772995842819,-25000.0,0.00019891,3]
[407997650,1772995842833,-350.0,0.00019893,2]
[407997651,1772995842848,-888.44634043,0.00019899,2]
[407997652,1772995842862,-888.44634041,0.000199,2]
[407997653,1772995842876,-2000.0,0.000199,2]
[407997654,1772995842891,-2000.0,0.000199,2]
[407997655,1772995842905,-500.0,0.000199,2]
[407997656,1772995842920,-500.0,0.000199,2]
[407997657,1772995842935,-500.0,0.000199,2]
[407997658,1772995842949,-500.0,0.000199,2]
[407997659,1772995842964,-500.0,0.000199,2]
[407997660,1772995842980,-500.0,0.000199,2]
[407997661,1772995842994,-500.0,0.000199,2]
[407997662,1772995843017,-500.0,0.000199,2]
[407997663,1772995843042,-25000.0,0.000199,3]
[407997664,1772995843063,-2820.95619039,0.000199,2]
[407997665,1772995843082,-5800.0,0.000199,2]
[407997666,1772995843098,-2000.0,0.000199,2]
[407997667,1772995843118,-2000.0,0.000199,2]
[407997668,1772995843135,-151.0,0.000199,2]
[407997669,1772995843152,-151.0,0.000199,2]
[407997670,1772995843169,-2000.0,0.000199,2]
[407997671,1772995843185,-151.0,0.000199,2]
[407997672,1772995843206,-151.0,0.000199,2]
[407997673,1772995843224,-6271.77889695,0.000199,3]
[407997674,1772995843242,-1086.472776,0.000199,2]
[407997675,1772995843258,-1086.472776,0.000199,2]
[407997676,1772995843276,-1086.472776,0.000199,2]
[407997677,1772995843292,-1086.472776,0.000199,2]
[407997678,1772995843307,-2255.11393819,0.000199,2]
[407997680,1772995843321,-151.0,0.000199,2]
[407997682,1772995843342,-290.919326,0.000199,2]
[407997683,1772995843362,-290.919326,0.000199,2]
[407997684,1772995843382,-290.919326,0.000199,2]